Cogmind - Beta 16.1 @@@ ROGUE MODE // 2026.03.13 @ 19:33:42 Player: KURIIRI Result: Self-destructed Performance ------------- Evolutions (3) 1500 Regions Visited (13) 2600 Robots Destroyed (353) 1765 Value Destroyed (12589) 12589 Prototype IDs (34) 680 Alien Tech Used (0) 0 Bonus (3312) 3312 TOTAL SCORE: 22446 Bonus ------- High Alert Combat Kills 2466 Follower Combat Kills 146 Entered Garrisons 400 Aligned with FarCom 300 Cogmind --------- Core Integrity 551/700 Matter 43/300 Energy 99/100 System Corruption 25% Temperature Cool (0) Movement Core (50) Location -7/Factory Parts ------- > --- POWER (1) -------- (None) > --- PROPULSION (4) --- (None) > --- UTILITY (6) ------ Advanced Targeting Computer Hacking Suite System Shield Improved System Shield > --- WEAPON (2) ------- (None) > --- INVENTORY (5) ---- Superbattery (1500) Heavy Armor Plating Improved EM Pulse Cannon Plasma Cannon Peak State ------------ > --- POWER ------------ Enhanced Nuclear Core > --- PROPULSION ------- Light Treads Armored Treads Armored Treads Advanced Treads > --- UTILITY ---------- Large Storage Unit Advanced Targeting Computer Hardened Medium Armor Plating Improved Hardlight Generator Hacking Suite System Shield > --- WEAPON ----------- Improved EM Pulse Cannon Improved EM Pulse Cannon > --- INVENTORY -------- Nuclear Core Angular Momentum Engine Armored Treads Armored Treads Advanced Heat Sink Superbattery Heavy Armor Plating Hardened Medium Armor Plating Improved Trap Extractor Improved EM Pulse Cannon Improved EM Pulse Cannon Gauss Rifle Missile Launcher Power Maul [Rating: 47] Favorites ----------- Power Angular Momentum Engine Engine Angular Momentum Engine Power Core Nuclear Core Propulsion Armored Treads Treads Armored Treads Leg Aluminum Leg Wheel Wheel Utility Large Storage Unit Device Improved Heat Sink Storage Large Storage Unit Processor Advanced Targeting Computer Hackware Hacking Suite Protection Hardened Medium Armor Plating Weapon Improved EM Pulse Cannon Energy Gun Medium Laser Energy Cannon Improved EM Pulse Cannon Ballistic Gun Gauss Rifle Launcher Rocket Launcher Impact Weapon Power Maul Build | -11 -10 -10 -9 -9 -9 -8 -8 -8 -8 -8 -7 -7 -7 ------- Run | Yrd Mat Min Mat Min Exi Min Mat Gar Mat Gar Fac Was Fac Slots Evolved 6 | . . . 2 . . . 2 . . . 2 . . Power . | . . . . . . . . . . . . . . Propulsion 2 | . . . . . . . 1 . . . 1 . . Utility 4 | . . . 2 . . . 1 . . . 1 . . Weapon . | . . . . . . . . . . . . . . Parts Attached 94 | 2 14 3 7 4 1 . 23 4 12 5 15 4 . Power 11 | . 2 . 2 1 . . 2 1 . . 2 1 . Engine 6 | . 2 . 1 1 . . 1 1 . . . . . Core 5 | . . . 1 . . . 1 . . . 2 1 . Reactor . | . . . . . . . . . . . . . . Propulsion 17 | 2 2 1 . 1 . . 3 . 4 1 3 . . Treads 13 | 2 2 1 . 1 . . 3 . 2 1 1 . . Leg . | . . . . . . . . . . . . . . Wheel 4 | . . . . . . . . . 2 . 2 . . Hover . | . . . . . . . . . . . . . . Flight . | . . . . . . . . . . . . . . Utility 29 | . 3 . 3 1 1 . 6 . 5 1 8 1 . Device 9 | . 1 . 1 1 1 . 1 . 1 1 2 . . Storage 2 | . 1 . . . . . . . . . 1 . . Processor 3 | . . . . . . . 2 . . . 1 . . Hackware 5 | . . . 1 . . . . . 1 . 2 1 . Protection 10 | . 1 . 1 . . . 3 . 3 . 2 . . Artifact . | . . . . . . . . . . . . . . Weapon 37 | . 7 2 2 1 . . 12 3 3 3 2 2 . Energy Gun 7 | . 1 . 1 . . . 4 . 1 . . . . Energy Cannon 21 | . 5 1 . 1 . . 6 2 2 2 2 . . Ballistic Gun 1 | . . . . . . . . . . 1 . . . Ballistic Cannon . | . . . . . . . . . . . . . . Launcher 5 | . 1 1 . . . . . 1 . . . 2 . Special Weapon . | . . . . . . . . . . . . . . Impact Weapon 3 | . . . 1 . . . 2 . . . . . . Slashing Weapon . | . . . . . . . . . . . . . . Piercing Weapon . | . . . . . . . . . . . . . . Special Melee Weapon . | . . . . . . . . . . . . . . Unidentified Prototypes 6 | . . . 1 . . . 2 . 1 . 1 1 . Corrupted Parts 1 | . . . . . . . . . . . . 1 . System Corruption 5 | . . . . . . . . . . . . 5 . Parts Lost 19 | . 1 . 5 2 . 1 3 . 1 1 3 2 . Power 5 | . . . 1 1 . . 1 . . . 1 1 . Propulsion 5 | . . . 1 . . . . . 1 1 1 1 . Utility 5 | . . . 2 1 . . 1 . . . 1 . . Weapon 4 | . 1 . 1 . . 1 1 . . . . . . Highest Loss Streak 3 | . 1 . 2 3 . 1 1 . 1 1 2 1 . To Critical Strikes . | . . . . . . . . . . . . . . Average Backups 13 | 5 11 13 13 13 14 14 14 15 14 13 12 9 4 Power . | 1 1 1 . . 1 2 1 1 1 1 . . . Propulsion 2 | 3 4 4 4 3 2 2 1 1 1 2 1 . . Utility 4 | . . 2 3 4 4 5 6 6 6 5 6 5 2 Weapon 5 | 1 4 5 5 5 6 5 5 6 5 5 4 3 2 Tool/Special . | . . . . . . . . . . . . . . Unused Backups 34 | . 4 2 1 . 1 1 15 1 2 . 1 5 1 Power 6 | . 3 . . . . . 3 . . . . . . Propulsion 4 | . 1 1 . . . 1 1 . . . . . . Utility 14 | . . . 1 . 1 . 6 . . . 1 4 1 Weapon 10 | . . 1 . . . . 5 1 2 . . 1 . Tool/Special . | . . . . . . . . . . . . . . Average Slot Usage (%) 92 | . 97 99 96 81 66 79 89 90 90 98 97 59 30 Engine 7 | . 14 14 4 5 11 11 7 7 9 9 1 . . Core 2 | . . . 6 . . . 1 1 . . 5 3 . Treads 23 | . 28 28 21 16 22 22 26 27 17 19 28 9 . Wheel 1 | . . . . . . . . . 9 7 1 4 . Device 7 | . 8 14 10 12 11 11 6 9 . . 4 . . Storage 9 | . 14 14 11 11 11 11 9 9 9 9 7 4 . Processor 4 | . . . . . . . 8 9 9 9 7 7 7 Hackware 7 | . . . 9 11 11 11 3 . 8 9 14 16 23 Protection 7 | . 4 . 9 2 . . 8 9 9 16 7 4 . Energy Cannon 15 | . 20 27 16 10 . 10 13 15 17 17 14 . . Launcher 1 | . . . 4 11 . . . 1 . . . 7 . Peak Build Rating 47 | 6 15 17 23 24 24 30 40 41 40 40 47 43 16 Average Rating 29 | 5 12 15 21 18 22 26 34 39 36 38 44 28 16 On Entrance 25 | 6 6 15 17 17 21 24 26 39 40 39 38 42 23 Avg Prop Armor Cover (%) 10 | . . . 7 . . . . . 8 11 16 8 . Naked Turns . | . . . . . . . . . . . . . . Heaviest Build 63 | 12 36 34 39 42 34 42 56 61 62 63 63 61 . Greatest Support 82 | 40 46 46 45 43 46 46 66 62 62 62 82 10 3 Greatest Overweight (x) 6 | . . . 1 2 . . . . 6 6 6 6 . Average Overweight (x) . | . . . . . . . . . 3 4 1 1 . Largest Inventory Capacity 15 | 8 15 15 15 15 15 15 15 15 15 15 15 15 5 Average Capacity 14 | 8 14 15 15 15 15 15 15 15 15 15 15 10 5 Most Carried 15 | 6 15 15 15 15 15 15 15 15 15 15 15 15 5 Average Carried 14 | 4 11 14 14 14 14 14 14 14 14 14 14 10 5 Final Capacity 15 | 8 15 15 15 15 15 15 15 15 15 15 15 5 5 Final Carried 15 | 4 15 15 15 14 15 14 15 15 15 14 15 5 5 Scrap Suit Usage (%) 9 | . . . . . 88 100 23 . . . . . . Parts Cannibalized 7 | . . . . . . . 7 . . . . . . Class Distribution -------------------- 82% | Mutant 11% | Hacker-Mutant 5% | Scientist-Mutant Dominant Class ---------------- Mutant | -10/Materials Mutant | -10/Mines Mutant | -9/Materials Mutant | -9/Mines Mutant | -9/Exiles Mutant | -8/Mines Mutant | -8/Materials Mutant | -8/Garrison Mutant | -8/Materials Mutant | -8/Garrison Hacker-Mutant | -7/Factory Hacker-Mutant | -7/Waste Hacker-Mutant | -7/Factory Resources | -11 -10 -10 -9 -9 -9 -8 -8 -8 -8 -8 -7 -7 -7 ----------- Run | Yrd Mat Min Mat Min Exi Min Mat Gar Mat Gar Fac Was Fac Matter Collected 4045 | 223 192 83 1311 87 . 242 350 256 317 333 405 246 . Remotely . | . . . . . . . . . . . . . . Salvage Created 12875 | 83 712 157 3800 75 . 233 1537 1035 2026 1412 1413 392 . Parts 692 | 2 47 13 244 16 . 21 71 61 100 62 55 . . Haulers Intercepted 16 | . 2 . 5 . . . 4 . 3 . 2 . . Recyclers Shooed 10 | . 1 1 6 . . 1 1 . . . . . . Parts Field Recycled . | . . . . . . . . . . . . . . Retrieved Matter . | . . . . . . . . . . . . . . Parts Self-Destructed . | . . . . . . . . . . . . . . Prevented . | . . . . . . . . . . . . . . Parts Restored . | . . . . . . . . . . . . . . Kills | -11 -10 -10 -9 -9 -9 -8 -8 -8 -8 -8 -7 -7 -7 ------- Run | Yrd Mat Min Mat Min Exi Min Mat Gar Mat Gar Fac Was Fac Combat Hostiles Destroyed 225 | . 14 4 46 11 . 10 23 31 33 34 17 2 . Melee 2 | . . . . . . . . . . 1 1 . . Guns 8 | . 7 . . . . . . . . 1 . . . Cannons 126 | . 6 3 25 2 . 2 21 16 20 20 11 . . AOE 72 | . . 1 19 9 . 8 . 13 11 9 . 2 . Classes Destroyed 18 | 1 5 1 5 . . 3 . . . 2 . 1 . Worker 39 | . . 1 28 1 . 1 . . 6 . 2 . . Builder 36 | . . . 33 . . . 1 . 1 . 1 . . Tunneler 4 | . . . . . . 2 1 . . . 1 . . Hauler 16 | . 2 . 5 . . . 4 . 3 . 2 . . Recycler 20 | 1 1 . 13 . . . 1 . 2 . 2 . . Mechanic 3 | . . . 2 . . . . . . . 1 . . Operator 7 | . 1 . 2 . . . 1 . 2 . 1 . . Watcher 21 | . 3 . 5 . . . 4 . 4 . 5 . . Swarmer 56 | . 3 . 7 11 . 6 2 13 3 8 3 . . Grunt 110 | . 11 4 27 . . 2 13 10 18 19 6 . . Brawler 4 | . . . 1 . . . . . 3 . . . . Duelist 3 | . . . . . . 1 . 1 1 . . . . Protector 2 | . . . 1 . . . . . 1 . . . . Sentry 35 | . . . 10 . . . 8 5 7 2 3 . . Specialist 1 | . . . . . . . . . . 1 . . . Hunter 5 | . . . . . . 1 . 2 . 2 . . . Programmer 8 | . . . . . . . . . . 3 5 . . Compactor 2 | . . . . . . . . . . . . 2 . Thug 1 | . . . . . . . . . . 1 . . . Savage 1 | . . . . . . . . . . 1 . . . Best Kill Streak 11 | 1 5 3 7 11 . 7 4 6 11 4 4 1 . Combat Bots Only 9 | . 4 2 5 9 . 6 4 6 6 4 3 1 . Max Kills in Single Turn 5 | 1 2 2 3 2 . 3 2 4 5 3 2 1 . Gunslinging . | . . . . . . . . . . . . . . Exploded 4 | . . 1 3 2 . 3 . 4 4 3 . 1 . Melee 1 | . . . . . . . . . . 1 1 . . Uniques/NPCs Destroyed . | . . . . . . . . . . . . . . Combat | -11 -10 -10 -9 -9 -9 -8 -8 -8 -8 -8 -7 -7 -7 -------- Run | Yrd Mat Min Mat Min Exi Min Mat Gar Mat Gar Fac Was Fac Hostile Shots Fired 575 | . 36 4 89 18 . 11 114 41 50 79 129 4 . Missed 147 | . 6 1 19 4 . 3 27 9 13 26 39 . . Hits 428 | . 30 3 70 14 . 8 87 32 37 53 90 4 . Melee 7 | . . . 2 . . . . 1 . . . 4 . Projectile 421 | . 30 3 68 14 . 8 87 31 37 53 90 . . Critical Strikes 21 | . 1 . 3 . . . 1 2 4 5 3 2 . Part Disruptions 3 | . . . 1 . . . . . . 1 1 . . Damage Taken 6810 | . 345 39 1094 217 . 132 1326 444 597 953 1186 477 . Core 700 | . 57 . 172 39 . 29 114 16 71 53 131 18 . Absorbed by Shields 175 | . . . . . . . . . . . 175 . . Regen/Repaired (Parts) 1214 | . . . 70 . . . 369 . 239 . 536 . . Core Remaining (%) 67 | 100 . 77 . . . 40 . . . 53 . . . Volleys Fired 709 | 1 45 13 246 11 . 20 92 55 67 79 61 19 . Largest 2 | 2 2 2 2 1 . 1 2 2 2 2 2 2 . Hottest 149 | 70 136 136 112 68 . 56 143 126 138 138 149 78 . Shots Fired 1074 | 2 89 21 312 11 . 20 164 87 124 119 93 32 . Gun 57 | 2 46 . . . . . 5 . . 4 . . . Cannon 842 | . 42 18 212 4 . 13 159 78 117 106 93 . . Launcher 175 | . 1 3 100 7 . 7 . 9 7 9 . 32 . Special . | . . . . . . . . . . . . . . Kinetic 22 | 1 17 . . . . . . . . 4 . . . Thermal 267 | 1 69 16 . 4 . . 149 . . . 28 . . Explosive 175 | . 1 3 100 7 . 7 . 9 7 9 . 32 . Electromagnetic 610 | . 2 2 212 . . 13 15 78 117 106 65 . . Robot Hit Streak 35 | 2 7 3 20 2 . 6 35 23 22 18 19 27 . Robot Miss Streak 4 | . 3 2 4 3 . 1 2 1 3 3 2 1 . Penetration Max . | . . . . . . . . . . . . . . Secondary Targets 1 | . 1 . . . . . . . . . . . . Max Gunslinging Chain 1 | . 1 . . . . . . . . . . . . Shots Hit Robots 702 | 2 59 7 176 2 . 13 131 48 86 67 82 29 . Core Hits 444 | 2 27 7 148 14 . 16 45 40 66 40 30 9 . Critical Kills 3 | . 1 . . . . . 1 . . . 1 . . Critical Parts Destroyed 3 | . . . . . . . 2 . . 1 . . . Critical Strikes 19 | . 1 . 7 . . . 4 2 2 1 2 . . Burn 1 | . . . . . . . 1 . . . . . . Meltdown 2 | . 1 . . . . . 1 . . . . . . Corrupt 12 | . . . 7 . . . . 2 2 . 1 . . Smash 4 | . . . . . . . 2 . . 1 1 . . Melee Attacks 65 | . . . 3 . . . 9 15 . 14 24 . . Impact 65 | . . . 3 . . . 9 15 . 14 24 . . Slashing . | . . . . . . . . . . . . . . Piercing . | . . . . . . . . . . . . . . Sneak Attacks 3 | . . . . . . . 2 . . . 1 . . Combat Hostiles . | . . . . . . . . . . . . . . Follow-up Attacks . | . . . . . . . . . . . . . . Damage Inflicted 32358 | 27 1049 364 8464 615 . 945 3206 2233 4247 3372 2946 4890 . Guns 557 | 27 420 . . . . . 53 . . 57 . . . Cannons 15350 | . 628 147 3835 44 . 223 2838 1207 2471 1524 2433 . . Explosions 15033 | . . 190 4607 571 . 701 49 1026 1776 1223 . 4890 . Melee 1329 | . . . . . . . 266 . . 562 501 . . Ramming 89 | . 1 27 22 . . 21 . . . 6 12 . . Kinetic 254 | 14 183 . . . . . . . . 57 . . . Thermal 5778 | 13 827 337 403 44 . 58 2710 91 408 213 674 . . Explosive 13566 | . . . 4149 571 . 643 . 935 1368 1010 . 4890 . Electromagnetic 11342 | . 38 . 3890 . . 223 230 1207 2471 1524 1759 . . Impact 1329 | . . . . . . . 266 . . 562 501 . . Slashing . | . . . . . . . . . . . . . . Piercing . | . . . . . . . . . . . . . . Highest Corruption 25 | . . . 1 2 2 2 . . 3 6 5 25 25 Average Corruption 2 | . . . 1 1 2 2 . . 2 1 3 16 25 Corruption Purged 11 | . . . . . . . . . 3 5 3 . . Corruption Blocked . | . . . . . . . . . . . . . . Effects 86 | . . . 13 6 4 9 . . 2 12 29 10 1 Message Errors 25 | . . . 3 2 . 1 . . 1 3 11 4 . Matter Fused 17 | . . . 3 1 1 5 . . . 3 4 . . Heat Flow Errors 11 | . . . 1 2 1 . . . 1 2 3 1 . Energy Discharges 9 | . . . 3 . . 1 . . . 1 3 1 . Parts Rejected 2 | . . . . . . . . . . 1 . 1 . Parts Fused 1 | . . . . . . . . . . . 1 . . Data Loss (minor) 7 | . . . 2 1 . 2 . . . . 1 . 1 Data Loss (major) 6 | . . . 1 . 2 . . . . . 2 1 . Misfires 2 | . . . . . . . . . . . 2 . . Alerts 2 | . . . . . . . . . . 1 1 . . Misdirections 2 | . . . . . . . . . . . . 2 . Weapon Failures 2 | . . . . . . . . . . 1 1 . . Overload Shots . | . . . . . . . . . . . . . . Overflow Damage 1160 | . 15 16 295 41 . 6 217 75 24 223 248 . . Projectiles 323 | . 15 . 103 . . . 31 6 2 . 166 . . Explosions 403 | . . 16 192 41 . 6 2 69 22 55 . . . Melee 434 | . . . . . . . 184 . . 168 82 . . Knockbacks 5 | . . 1 . . . . 2 . . . 2 . . Impact 5 | . . 1 . . . . 2 . . . 2 . . Kinetic . | . . . . . . . . . . . . . . Secondary . | . . . . . . . . . . . . . . Self-Inflicted Damage 707 | . 4 . 173 57 . 24 . 2 55 64 3 325 . Shots 26 | . 1 . 7 2 . 1 . 1 3 2 . 9 . Rammed 17 | . 1 3 7 . . 3 . . . 1 2 . . Targets Rammed 19 | . 1 3 8 . . 4 . . . 1 2 . . Kicked . | . . . . . . . . . . . . . . Crushed 2 | . . . 1 . . 1 . . . . . . . Highest Temperature 438 | 9 268 81 184 184 131 88 378 135 413 438 310 319 . Average Temperature 102 | 6 93 26 22 66 72 36 121 40 129 116 99 204 . Received Heat Transfer 1842 | . 165 24 336 . . 27 630 144 270 171 75 . . Effects 15 | . . . . . . . 4 . 4 5 2 . . Shutdowns 2 | . . . . . . . . . 1 1 . . . Energy Bleed 5 | . . . . . . . 2 . 1 . 2 . . Interference 5 | . . . . . . . 2 . 1 2 . . . Damage (minor) 3 | . . . . . . . . . 1 2 . . . Siege Activations . | . . . . . . . . . . . . . . Martial Activations . | . . . . . . . . . . . . . . Shielding Activations . | . . . . . . . . . . . . . . Robots Disrupted . | . . . . . . . . . . . . . . Combat Hostiles . | . . . . . . . . . . . . . . Robots Corrupted 24 | . . . 7 . . . 5 2 3 3 4 . . Combat Hostiles 13 | . . . 2 . . . 1 2 2 3 3 . . Parts Fried 86 | . . . 27 . . 2 4 7 19 13 14 . . Impact Corruptions 20 | . . . . . . . 7 . . 8 5 . . Robots Melted 3 | . 1 . . . . . 1 . . . 1 . . Combat Hostiles 3 | . 1 . . . . . 1 . . . 1 . . Parts Melted 19 | . 3 . 1 . . . 10 1 . . 4 . . Heat Transferred 9658 | 37 1739 509 550 74 . 50 4749 150 450 200 1150 . . Parts Sabotaged . | . . . . . . . . . . . . . . Parts Stolen . | . . . . . . . . . . . . . . Parts Stripped . | . . . . . . . . . . . . . . Power Chain Reactions 21 | . . . 9 . . 1 1 2 6 2 . . . Alert | -11 -10 -10 -9 -9 -9 -8 -8 -8 -8 -8 -7 -7 -7 ------- Run | Yrd Mat Min Mat Min Exi Min Mat Gar Mat Gar Fac Was Fac Maximum Alert Level 5 | . . 1 4 3 . . 1 4 3 5 4 1 . Low Security (%) 39 | 100 100 97 48 . . 100 77 4 . . . 1 100 Level 1 7 | . . 2 9 . . . 22 17 . . . 98 . Level 2 20 | . . . 11 68 . . . 25 40 7 62 . . Level 3 19 | . . . 15 31 . . . 22 59 23 36 . . Level 4 8 | . . . 15 . . . . 29 . 32 . . . Level 5 3 | . . . . . . . . . . 35 . . . High Security . | . . . . . . . . . . . . . . Max Security . | . . . . . . . . . . . . . . Peak Influence 2249 | 5 118 217 1568 781 . 167 311 1552 870 2249 1180 273 135 Initial 1180 | . 3 31 . 611 . . 13 182 756 486 1180 234 135 Average 518 | 3 44 58 467 666 . 45 103 801 696 1403 716 236 135 Influence Increases 9574 | 5 495 312 2342 420 . 302 826 1370 1003 1773 646 80 . Destroy 0b10 Robot/C 4500 | . 280 80 900 220 . 200 460 620 640 760 340 . . Destroy 0b10 Robot/NC 740 | 5 35 5 445 5 . 15 60 . 95 . 75 . . Destroy Leader 864 | . 70 20 260 30 . 40 116 20 154 30 124 . . Allied During Kill 28 | . . . . . . . . . . 28 . . . Trap Triggered on 0b10 10 | . . . . . . . . . . . 10 . . Successful Hack 228 | . 24 . 9 . . . 85 44 15 18 33 . . Disable Machine 780 | . 45 135 225 135 . . 30 30 30 120 30 . . Anti-Garrison Action 950 | . . . . . . . . 500 . 450 . . . Destroy Structure 1174 | . 11 72 488 30 . 47 15 126 54 247 4 80 . Partial Spotted 15 | . . . . . . . . . . . 15 . . Lose Combat Pursuer 285 | . 30 . 15 . . . 60 30 15 120 15 . . Influence Decreases 9439 | . 417 395 774 1319 669 267 581 98 1806 273 2225 556 59 Entered New Map 4423 | . 2 52 . 957 669 . 22 98 796 263 1069 436 59 Time Decay 3916 | . 405 343 724 342 . 257 529 . 550 . 666 100 . Lost Part 190 | . 10 . 50 20 . 10 30 . 10 10 30 20 . Lost Ally 10 | . . . . . . . . . . . 10 . . Purge Threat 900 | . . . . . . . . . 450 . 450 . . Squads Dispatched 35 | . 3 1 13 . . . 4 . 4 . 10 . . Investigation 9 | . 2 1 1 . . . 1 . 1 . 3 . . Extermination 6 | . . . . . . . . . . . 6 . . Reinforcement 11 | . 1 . 8 . . . . . 1 . 1 . . Assault 6 | . . . 4 . . . . . 2 . . . . Garrison 3 | . . . . . . . 3 . . . . . . Intercept . | . . . . . . . . . . . . . . Searches Triggered . | . . . . . . . . . . . . . . Construction Impeded 7 | . . . 6 . . . . . . . 1 . . Haulers Reinforced . | . . . . . . . . . . . . . . Active Scanning Responses . | . . . . . . . . . . . . . . Cargo Convoy Interrupts . | . . . . . . . . . . . . . . Stealth | -11 -10 -10 -9 -9 -9 -8 -8 -8 -8 -8 -7 -7 -7 --------- Run | Yrd Mat Min Mat Min Exi Min Mat Gar Mat Gar Fac Was Fac Distress Signals 15 | . 1 . 5 . . 1 3 . 4 . 1 . . Communications Jammed . | . . . . . . . . . . . . . . Distress Signals . | . . . . . . . . . . . . . . Times Spotted 285 | . 21 6 72 9 . 7 37 22 45 32 28 6 . Peak Tracking Total 6 | . 4 2 6 4 . 2 5 6 5 5 4 4 . Tactical Retreats 15 | . 2 . 1 . . . 3 1 1 5 1 1 . Traps | -11 -10 -10 -9 -9 -9 -8 -8 -8 -8 -8 -7 -7 -7 ------- Run | Yrd Mat Min Mat Min Exi Min Mat Gar Mat Gar Fac Was Fac Traps Triggered 15 | . 2 . 1 2 . . . 1 1 6 2 . . Indirectly . | . . . . . . . . . . . . . . Trap Hack Attempts . | . . . . . . . . . . . . . . Triggered . | . . . . . . . . . . . . . . Disarmed . | . . . . . . . . . . . . . . Reprogrammed . | . . . . . . . . . . . . . . Reused 1 | . . . . . . . . . . . 1 . . Traps Extracted 4 | . . . . 4 . . . . . . . . . Installed 2 | . . . . . . . . . . . 2 . . Triggered 1 | . . . . . . . . . . . 1 . . Most Traps Carried 4 | . . . . 4 4 4 4 4 4 4 4 2 . Machines | -11 -10 -10 -9 -9 -9 -8 -8 -8 -8 -8 -7 -7 -7 ---------- Run | Yrd Mat Min Mat Min Exi Min Mat Gar Mat Gar Fac Was Fac Machines Disabled 77 | . 3 9 18 10 . . 2 12 2 19 2 . . Max in Single Turn 5 | . 1 5 3 4 . . 1 3 1 2 1 . . Garrison Relay 11 | . . . . . . . . 7 . 4 . . . Phase Generator 2 | . . . . . . . . 1 . 1 . . . Machines Repaired . | . . . . . . . . . . . . . . Machines Dismantled . | . . . . . . . . . . . . . . Machines Sabotaged . | . . . . . . . . . . . . . . Overloaded Fab Kills . | . . . . . . . . . . . . . . Hacking | -11 -10 -10 -9 -9 -9 -8 -8 -8 -8 -8 -7 -7 -7 --------- Run | Yrd Mat Min Mat Min Exi Min Mat Gar Mat Gar Fac Was Fac Machines Accessed 64 | . 6 1 12 1 2 . 13 3 11 2 13 . . Terminals 47 | . 6 . 10 . . . 10 3 7 2 9 . . Fabricators . | . . . . . . . . . . . . . . Repair Stations 5 | . . . 1 . . . 1 . 1 . 2 . . Recycling Units . | . . . . . . . . . . . . . . Scanalyzers 5 | . . . 1 . . . 1 . 2 . 1 . . Garrison Access 3 | . . . . . . . 1 . 1 . 1 . . Total Hacks 197 | . 21 1 37 1 6 . 43 5 35 3 45 . . Successful 113 | . 12 1 20 1 6 . 26 3 22 2 20 . . Failed 80 | . 9 . 16 . . . 16 2 12 1 24 . . Catastrophic 16 | . 1 . 3 . . . 2 . 1 . 9 . . Database Lockouts 4 | . . . 1 . . . 1 . 1 . 1 . . Manual 102 | . 17 . 20 . 1 . 18 . 19 . 27 . . Terminals 144 | . 21 . 25 . . . 33 5 23 3 34 . . Fabricators . | . . . . . . . . . . . . . . Repair Stations 17 | . . . 6 . . . 3 . 2 . 6 . . Recycling Units . | . . . . . . . . . . . . . . Scanalyzers 21 | . . . 6 . . . 5 . 7 . 3 . . Garrison Access 7 | . . . . . . . 2 . 3 . 2 . . Terminal Hacks 41 | . 4 1 5 1 6 . 11 3 4 2 4 . . Record 5 | . . . . . 5 . . . . . . . . Robot Analysis 6 | . 2 . 3 . . . 1 . . . . . . Prototype ID Bank 3 | . 1 . 1 . . . 1 . . . . . . Open Door 3 | . . 1 . 1 . . . . . 1 . . . Emergency Access Points 2 | . . . . . . . . 1 . 1 . . . Terminal Index 1 | . . . . . . . 1 . . . . . . Alert Level 4 | . . . 1 . . . 1 . 1 . 1 . . Unreport Threat 6 | . . . . . . . . . 3 . 3 . . Locate Traps 4 | . 1 . . . . . 3 . . . . . . Zone Layout 4 | . . . . . . . 4 . . . . . . Garrison Registry 1 | . . . . . . . . 1 . . . . . Security Stations 1 | . . . . . . . . 1 . . . . . Proto ID Catalog 1 | . . . . . 1 . . . . . . . . Fabricator Hacks . | . . . . . . . . . . . . . . Repair Station Hacks 13 | . . . 4 . . . 2 . 2 . 5 . . Scan Component 7 | . . . 2 . . . 1 . 1 . 3 . . Repair 6 | . . . 2 . . . 1 . 1 . 2 . . Recycling Unit Hacks . | . . . . . . . . . . . . . . Scanalyzer 16 | . . . 4 . . . 4 . 6 . 2 . . Insert Component 1 | . . . . . . . . . 1 . . . . Analyze 1 | . . . . . . . . . 1 . . . . Retrieve Study 14 | . . . 4 . . . 4 . 4 . 2 . . Garrison Access Hacks 2 | . . . . . . . 1 . 1 . . . . Unlock Access 2 | . . . . . . . 1 . 1 . . . . Unauthorized Hacks 41 | . 8 . 7 . . . 8 . 9 . 9 . . Terminals 41 | . 8 . 7 . . . 8 . 9 . 9 . . Assimilate 2 | . . . . . . . 1 . . . 1 . . Botnet 10 | . 2 . 1 . . . 2 . 3 . 2 . . Operators 2 | . 1 . 1 . . . . . . . . . . Skim 27 | . 5 . 5 . . . 5 . 6 . 6 . . Fabricators . | . . . . . . . . . . . . . . Repair Stations . | . . . . . . . . . . . . . . Recycling Units . | . . . . . . . . . . . . . . Scanalyzers . | . . . . . . . . . . . . . . Garrison Access . | . . . . . . . . . . . . . . Data Cores Recovered 2 | . . . . . . . 1 . 1 . . . . Used 1 | . . . . . . . 1 . . . . . . Hacking Detections 51 | . 6 . 9 . . . 10 2 10 1 13 . . Full Trace Events 7 | . . . 2 . . . 1 . 1 . 3 . . Feedback Events 1 | . . . . . . . . . 1 . . . . Corruption 1 | . . . . . . . . . 1 . . . . Feedback Blocked . | . . . . . . . . . . . . . . Robot Schematics Acquired . | . . . . . . . . . . . . . . Robots Built . | . . . . . . . . . . . . . . Authchips . | . . . . . . . . . . . . . . Time . | . . . . . . . . . . . . . . Total Robot Build Rating . | . . . . . . . . . . . . . . Part Schematics Acquired 1 | . . . . . . . . . 1 . . . . Parts Built . | . . . . . . . . . . . . . . Authchips . | . . . . . . . . . . . . . . Time . | . . . . . . . . . . . . . . Total Part Build Rating . | . . . . . . . . . . . . . . Part Studies Acquired 12 | . . . 3 . . . 4 . 3 . 2 . . Parts Repaired 6 | . . . 2 . . . 1 . 1 . 2 . . Time 237 | . . . 85 . . . 38 . 38 . 76 . . Parts Recycled . | . . . . . . . . . . . . . . Recycled Matter . | . . . . . . . . . . . . . . Retrieved Matter . | . . . . . . . . . . . . . . Retrieved Components . | . . . . . . . . . . . . . . Parts Scanalyzed 1 | . . . . . . . . . 1 . . . . Part Schematics Acquired 1 | . . . . . . . . . 1 . . . . Parts Damaged . | . . . . . . . . . . . . . . Bothacking | -11 -10 -10 -9 -9 -9 -8 -8 -8 -8 -8 -7 -7 -7 ------------ Run | Yrd Mat Min Mat Min Exi Min Mat Gar Mat Gar Fac Was Fac Used RIF Installer . | . . . . . . . . . . . . . . Robots Hacked . | . . . . . . . . . . . . . . Non-combat . | . . . . . . . . . . . . . . Combat . | . . . . . . . . . . . . . . Robot Hacks Applied . | . . . . . . . . . . . . . . Relay Couplers Released 53 | . . . . . . . . 27 . 22 4 . . Machine Destruction 45 | . . . . . . . . 27 . 18 . . . Programmers 8 | . . . . . . . . . . 4 4 . . Fabnet Peak Effective % . | . . . . . . . . . . . . . . Robots Rewired 3 | . . . . . . . . . . 3 . . . Allies Hacked 2 | . . . . . . . . . . . 2 . . Hacks Repelled . | . . . . . . . . . . . . . . Allies | -11 -10 -10 -9 -9 -9 -8 -8 -8 -8 -8 -7 -7 -7 -------- Run | Yrd Mat Min Mat Min Exi Min Mat Gar Mat Gar Fac Was Fac Total Allies 4 | . . . . . . . . . . 3 1 . . Largest Group 3 | . . . . . . . . . . 3 1 . . Highest-Rated Group 72 | . . . . . . . . . . 72 10 . . Highest-Rated Ally 31 | . . . . . . . . . . 31 10 . . Initial Warlord ECA Mod 22 | . . . . . . . . . 12 12 22 22 22 Total Orders 13 | . . . . . . . . . . . 13 . . STAY 7 | . . . . . . . . . . . 7 . . FOLLOW 6 | . . . . . . . . . . . 6 . . Ally Attacks 21 | . . . . . . . . . . 21 . . . Total Damage 402 | . . . . . . . . . . 402 . . . Kills 4 | . . . . . . . . . . 4 . . . Allies Corrupted . | . . . . . . . . . . . . . . Allies Melted . | . . . . . . . . . . . . . . Intel | -11 -10 -10 -9 -9 -9 -8 -8 -8 -8 -8 -7 -7 -7 ------- Run | Yrd Mat Min Mat Min Exi Min Mat Gar Mat Gar Fac Was Fac Active Infowar (turns) 1 | . . . . . . . 1 . . . . . . T.N.C. 1 | . . . . . . . 1 . . . . . . Robot Analysis Total 6 | . 2 . 3 . . . 1 . . . . . . Derelict Logs Recovered 1 | . . 1 . . . . . . . . . . . Drone Launches . | . . . . . . . . . . . . . . Drone Recoveries . | . . . . . . . . . . . . . . Exploration | -11 -10 -10 -9 -9 -9 -8 -8 -8 -8 -8 -7 -7 -7 ------------- Run | Yrd Mat Min Mat Min Exi Min Mat Gar Mat Gar Fac Was Fac Turns Passed 17859 | 14 1379 1013 4066 760 368 790 2188 1342 1596 1580 2546 203 14 Spaces Moved 8364 | 6 699 596 1458 379 225 422 1042 652 768 631 1293 167 26 Core 155 | . . . . . . . . . . . . 129 26 Treads 6853 | 6 699 596 1458 379 225 422 1042 652 201 148 1025 . . Legs . | . . . . . . . . . . . . . . Wheels 1356 | . . . . . . . . . 567 483 268 38 . Hover . | . . . . . . . . . . . . . . Flight . | . . . . . . . . . . . . . . Fastest Speed 50 | 160 160 152 152 160 160 160 158 161 115 155 155 50 50 Average Speed 161 | 160 160 158 164 191 160 160 160 161 155 176 162 78 50 Slowest Speed 320 | 160 160 160 240 320 160 160 163 161 197 211 170 250 50 Overloaded Moves . | . . . . . . . . . . . . . . Propulsion Burnouts . | . . . . . . . . . . . . . . Robots Hopped . | . . . . . . . . . . . . . . Potential Cave-ins 2 | . . . . . . . . . . . . 2 . Cave-ins Triggered . | . . . . . . . . . . . . . . Exploration Rate (%) 67 | 2 94 96 95 75 59 84 74 70 75 93 46 76 2 Regions Visited 13 Branch Regions 4 Pre-discovered Areas 6 | . 1 2 . . 1 . . . . . 2 . . Known Exits Taken 3 | . . . . . . 1 1 . 1 . . . . Unknown Exits Taken 6 | 1 1 1 1 1 1 . . . . . . . . Scrap Searched 4 | . . 2 . 1 . 1 . . . . . . . Spaces Dug 218 | . 10 11 133 . . . 5 11 9 20 4 15 . Terrain Destroyed 1567 | . 10 79 690 35 . 58 11 123 55 307 4 195 . Melee 23 | . . . 3 . . . 5 11 . . 4 . . Projectile 1 | . . . . 1 . . . . . . . . . AOE 1543 | . 10 79 687 34 . 58 6 112 55 307 . 195 . Terrain Rammed . | . . . . . . . . . . . . . . Walls Destroyed . | . . . . . . . . . . . . . . Machines Disabled . | . . . . . . . . . . . . . . Actions | -11 -10 -10 -9 -9 -9 -8 -8 -8 -8 -8 -7 -7 -7 --------- Run | Yrd Mat Min Mat Min Exi Min Mat Gar Mat Gar Fac Was Fac Total 11511 | 10 869 646 2807 402 235 517 1381 824 1049 942 1601 201 27 Wait 1937 | . 88 18 1062 5 . 65 150 80 160 149 153 7 . Move 8354 | 5 698 595 1457 378 224 421 1042 651 768 630 1293 166 26 Hop . | . . . . . . . . . . . . . . Pick Up 96 | . 12 5 9 2 4 1 27 4 12 3 16 1 . Fast Attach 31 | . 6 . 3 1 . . 9 . 7 1 2 2 . Attach 37 | 2 1 2 4 3 1 2 5 . 6 4 7 . . Detach 10 | . 2 . . 1 1 1 . . 3 . 2 . . Swap 99 | . 7 3 10 . 1 1 17 14 8 13 23 2 . Drop 106 | 2 9 7 5 1 4 2 30 5 18 2 16 4 1 Fire 709 | 1 45 13 246 11 . 20 92 55 67 79 61 19 . Melee 65 | . . . 3 . . . 9 15 . 14 24 . . Ram 2 | . . . . . . . . . . 1 1 . . Kick . | . . . . . . . . . . . . . . Crush 17 | . 1 3 8 . . 4 . . . . 1 . . Escape Stasis 29 | . . . . . . . . . . 29 . . . Rewire 17 | . . . . . . . . . . 17 . . . Trap 2 | . . . . . . . . . . . 2 . . Miscellaneous . | . . . . . . . . . . . . . . Route ------- -11/Scrapyard -10/Materials (discovered 5 exits: *Mat x3 / *Min / [*Sub]) -10/Mines (discovered 2 exits: *Mat x2) -9/Materials (discovered 4 exits: *Mat x3 / *Min) -9/Mines (discovered 3 exits: *Mat x2 / *Exi) -9/Exiles -8/Mines -8/Materials (discovered 5 exits: *Fac x3 / Sto / Gar) -8/Garrison (discovered 3 exits: *Mat x3) -8/Materials (discovered 3 exits: *Fac x2 / Gar) -8/Garrison (discovered 3 exits: *Fac x3) -7/Factory (discovered 5 exits: Fac x3 / Low x2) -7/Waste -7/Factory (discovered 2 exits: Fac x2) History --------- Turn | Location | Event 7 | -11/Scrapyard | Discovered new exit (range 3) 15 | -11/Scrapyard | Entered Materials 304 | -10/Materials | Build established: Mutant 425 | -10/Materials | Discovered new exit (range 3) 696 | -10/Materials | Discovered new exit (range 3) 797 | -10/Materials | Discovered new exit (range 8) 845 | -10/Materials | Discovered new exit (range 5) 1012 | -10/Materials | Discovered new exit (range 3) 1133 | -10/Materials | Learned Storage stockpile data 1211 | -10/Materials | Learned location of 1 exit from Storage 1232 | -10/Materials | Learned Storage trap positions 1243 | -10/Materials | Learned Storage trap positions 1264 | -10/Materials | Learned location of 1 exit from Storage 1294 | -10/Materials | Learned location of Subcaves (-10) 1394 | -10/Materials | Entered Mines 1439 | -10/Mines | Discovered new exit (range 6) 1651 | -10/Mines | Received a Rocket Launcher from a helpful Derelict 1904 | -10/Mines | Found a Scrap Suit stashed away for nefarious purposes 1909 | -10/Mines | Found Scrap Suit 2142 | -10/Mines | Learned location of Storage (-8) 2150 | -10/Mines | Discovered new exit (range 15) 2209 | -10/Mines | Met a Derelict shopkeep closing up shop 2407 | -10/Mines | Entered Materials 2407 | -9/Materials | Evolved 2 slots: Utility x2 2821 | -9/Materials | Discovered new exit (range 13) 3052 | -9/Materials | Repaired Corrupted Hacking Suite 3363 | -9/Materials | Discovered new exit (range 16) 3591 | -9/Materials | Repaired Lgt. EM Pulse Cannon 3754 | -9/Materials | Central database locked down 4179 | -9/Materials | Discovered new exit (range 15) 4532 | -9/Materials | Discovered new exit (range 11) 4657 | -9/Materials | Learned Storage trap positions 4707 | -9/Materials | Learned location of 1 exit from Storage 4717 | -9/Materials | Identified exit to Materials 4735 | -9/Materials | Learned Storage trap positions 6007 | -9/Materials | First assault squad dispatched 6473 | -9/Materials | Entered Mines 6501 | -9/Mines | Destroyed 9 combat bots 6505 | -9/Mines | Lost 3 parts (1p1n1w) 6557 | -9/Mines | Met a Derelict bent on vengeance 6658 | -9/Mines | Met a Derelict who couldn't figure out how to use a Trap Extractor 6848 | -9/Mines | Core integrity fell below 50% 6966 | -9/Mines | Discovered exit to Materials (range 11) 7105 | -9/Mines | Discovered exit to Materials (range 14) 7226 | -9/Mines | Deemed a non-threat by the Exiles lab entrance 7226 | -9/Mines | Discovered new exit (range 5) 7233 | -9/Mines | Entered Exiles 7271 | -9/Exiles | Met 8R-AWN 7334 | -9/Exiles | Met EX-HEX 7380 | -9/Exiles | Met EX-BIN 7398 | -9/Exiles | Aligned with FarCom system 7399 | -9/Exiles | Given EX-Vault access code 7441 | -9/Exiles | Opened EX-Vault 7454 | -9/Exiles | Found Superbattery 7484 | -9/Exiles | Warned to stay clear of 0b10 Research branches 7537 | -9/Exiles | Learned location of Zion (-7) 7586 | -9/Exiles | Discovered new exit (range 10) 7601 | -9/Exiles | Left Exiles lab with Superbattery 7601 | -9/Exiles | Entered Mines 8383 | -8/Mines | Discovered exit to Materials (range 6) 8391 | -8/Mines | Entered Materials 8391 | -8/Materials | Evolved 2 slots: Propulsion x1, Utility x1 8995 | -8/Materials | Discovered new exit (range 9) 9694 | -8/Materials | Central database locked down 9810 | -8/Materials | Learned Factory stockpile data 9888 | -8/Materials | Learned 12 Factory zone layouts 9894 | -8/Materials | Discovered new exit (range 7) 9958 | -8/Materials | Identified exit to Factory 9958 | -8/Materials | Identified exit to Storage 9958 | -8/Materials | Garrison activated, responded to threat 10017 | -8/Materials | Learned 2 Storage zone layouts 10064 | -8/Materials | Learned 2 Lower Caves zone layouts 10099 | -8/Materials | Learned location of 1 exit from Extension 10142 | -8/Materials | Learned 8 Factory zone layouts 10270 | -8/Materials | Repaired Hvy. Armor Plating 10579 | -8/Materials | Identified exit to Garrison 10579 | -8/Materials | Entered Garrison 10641 | -8/Garrison | Triggered checkpoint 10678 | -8/Garrison | Garrison Relay disabled 10839 | -8/Garrison | Triggered checkpoint 10983 | -8/Garrison | Triggered checkpoint 11100 | -8/Garrison | Triggered checkpoint 11128 | -8/Garrison | Discovered new exit (range 11) 11168 | -8/Garrison | Garrison Relay disabled 11245 | -8/Garrison | Triggered checkpoint 11306 | -8/Garrison | Garrison Relay disabled 11351 | -8/Garrison | Phase Generator disabled 11431 | -8/Garrison | Triggered checkpoint 11463 | -8/Garrison | Triggered checkpoint 11527 | -8/Garrison | Garrison Relay disabled 11546 | -8/Garrison | Discovered new exit (range 9) 11554 | -8/Garrison | Discovered new exit (range 58) 11554 | -8/Garrison | Discovered new exit (range 46) 11554 | -8/Garrison | Discovered new exit (range 8) 11599 | -8/Garrison | Learned Materials security intel 11650 | -8/Garrison | Triggered checkpoint 11921 | -8/Garrison | Entered Materials 12043 | -8/Materials | Repaired Hvy. Armor Plating 12321 | -8/Materials | First assault squad dispatched 12503 | -8/Materials | Build established: Scientist-Mutant 12817 | -8/Materials | Discovered exit to Factory (range 5) 13069 | -8/Materials | Build established: Mutant 13301 | -8/Materials | Central database locked down 13330 | -8/Materials | Discovered exit to Factory (range 10) 13490 | -8/Materials | Learned Storage trap positions 13517 | -8/Materials | Identified exit to Garrison 13517 | -8/Materials | Entered Garrison 13633 | -8/Garrison | Triggered checkpoint 13654 | -8/Garrison | Triggered checkpoint 13692 | -8/Garrison | Garrison Relay disabled 13735 | -8/Garrison | Triggered checkpoint 13903 | -8/Garrison | Triggered checkpoint 14012 | -8/Garrison | Triggered checkpoint 14030 | -8/Garrison | Triggered checkpoint 14106 | -8/Garrison | Triggered checkpoint 14145 | -8/Garrison | Discovered exit to Factory (range 10) 14182 | -8/Garrison | Garrison Relay disabled 14241 | -8/Garrison | Phase Generator disabled 14357 | -8/Garrison | Discovered exit to Factory (range 9) 14492 | -8/Garrison | Triggered checkpoint 14893 | -8/Garrison | Garrison Relay disabled 14898 | -8/Garrison | Triggered checkpoint 14968 | -8/Garrison | Discovered exit to Factory (range 15) 15058 | -8/Garrison | Garrison Relay disabled 15097 | -8/Garrison | Entered Factory 15097 | -7/Factory | Evolved 2 slots: Propulsion x1, Utility x1 15098 | -7/Factory | Identified exit to Factory 15387 | -7/Factory | Repaired Hvy. Armor Plating 15426 | -7/Factory | Repaired Arm. Treads+ 15466 | -7/Factory | Build established: Hacker-Mutant 16604 | -7/Factory | Learned 8 Factory zone layouts 16648 | -7/Factory | Learned location of 1 exit from Extension 16684 | -7/Factory | Learned 2 Proximity Caves zone layouts 16708 | -7/Factory | Identified exit to Lower Caves 16720 | -7/Factory | Learned location of Hub_04(d) (-4) 16722 | -7/Factory | Learned location of 1 exit from Upper Caves 16723 | -7/Factory | Learned 12 Factory zone layouts 16725 | -7/Factory | Learned location of Upper Caves (-4) 16737 | -7/Factory | Learned Hub_04(d) emergency access door positions 16789 | -7/Factory | Learned 2 Upper Caves zone layouts 16870 | -7/Factory | Watched by a mysterious "MATRIX" hacker. 16870 | -7/Factory | Central database locked down 17442 | -7/Factory | Build established: Scientist-Mutant 17643 | -7/Factory | Sucked down chute 17643 | -7/Factory | Entered Waste 17658 | -7/Waste | EMP discharged 17658 | -7/Waste | System corruption reached 10% 17661 | -7/Waste | Spotted C-40 Crusher 17675 | -7/Waste | Destroyed C-40 Crusher 17675 | -7/Waste | Spotted C-40 Crusher 17688 | -7/Waste | Spotted C-40 Crusher 17691 | -7/Waste | Spotted C-40 Crusher 17699 | -7/Waste | Crushed by Compactor (0 parts destroyed, 1 dropped) 17700 | -7/Waste | Destroyed C-40 Crusher 17703 | -7/Waste | Spotted C-40 Crusher 17712 | -7/Waste | Crushed by Compactor (1 part destroyed, 1 dropped) 17713 | -7/Waste | Spotted C-40 Crusher 17719 | -7/Waste | Crushed by Compactor (0 parts destroyed, 1 dropped) 17758 | -7/Waste | EMP discharged 17764 | -7/Waste | Crushed by Compactor (1 part destroyed, 1 dropped) 17813 | -7/Waste | Discovered new exit (range 12) 17846 | -7/Waste | Entered Factory 17860 | -7/Factory | Self-destructed Last Messages --------------- 17772_ Power Maul crushed. 17772_ Hrd. Heavy Armor Plating crushed. 17774_ Hrd. Medium Armor Plating crushed. 17777_ Broken Adv. Plasma Cannon crushed. 17778_ System corrupted: Energy discharge (-20). 17783_ The unstable cave ceiling collapses. 17805_ Acquired Corrupted Imp. System Shield. 17805_ Integrated Corrupted Imp. System Shield (+5). 17813_ EXIT=FOUND 17814_ 7|O|FDM3J YFHFP#:T%BFP 17835_ Acquired Prototype Power Core. 17835_ Identified Enh. Fission Core. 17836_ G4/CLRHIMDLM6#TRO7JS LOCATION=UNKNOWN GOAL=ESCAPE 17846_ Receiving FarCom transmissions... 17846_ Dropped Broken Enh. Fission Core. Loading 20 Factory zones... 17860_ System corrupted: Component data lost. Map ----- +----------------------------------------------------+ | ???????????????????????????# """"" # | | ???????????????????????????# # " | | ??????????????##########?### """ + " | | ??????????????# ?? # """"" # " | | ??????????????# """??" # """"" # | | ??????????????# """??" # # " | | ????????####### """""" ######### " | | ????????# # """""" #??????# " | | ????????# # #??????# | | ????????# * # """"?" #??????# " | | ????????# + """"?" #??????# " | | ######??# # """"?" #??????# " | | # ??# # """"?" #??????# | | # ?# # ! #??????# | | # ?# # #??????# | | # # ###############?????# | | # # #?????# | | # + #?????# | | # # """ """ #?????# | | # # """ """ #?????# | | # ?# """ """ #?????# | | # ?######## #?????# | | # ?????????# """ """ ####### | | ################ """ """ | | ??????# + """ """ | | ??????# """ @# | | ??????# """ # | | ??????# """ + | | ??????? #########+#######+###### | | ??????# """ #????????? # | | ??????# """ #????????? # | | ??????#[ """ #????????? # | | ??????# k #????????? # | | ?????????#######????????? # | | ????????????????????????? # | | ????????????????????????? # | | ?????????????????????????w# | | ????????????????????????? # | | ????????????????????????? # | | ????????????????????????? # | | ????????????????????????? # | | ?????????????????????????############## | | | | | | | | | | | | | | | | | +----------------------------------------------------+ Best States ------------- Heat Dissipation 50 Energy Generation 18 Energy Capacity 300 Matter Stores 300 Matter Capacity 300 Sight Range 16 Terrain Scan Density 10 Armor Coverage 750 Evasion (%) 50 Targeting Accuracy 8 Recoil Reduction 4 Offensive Hacking 20 Defensive Hacking 22 Trap Extractor Capacity 6 Item Schematics ----------------- Hvy. Armor Plating | -8/Materials | Scanalyzed Robot Schematics ------------------ None Fabricated ------------ Nothing Repaired ---------- Hacking Suite | 80% | -9/Materials | Corrupted Lgt. EM Pulse Cannon | 2% | -9/Materials Hvy. Armor Plating | 1% | -8/Materials Hvy. Armor Plating | 20% | -8/Materials Hvy. Armor Plating | 8% | -7/Factory Arm. Treads | 13% | -7/Factory Studied --------- Com. Wheel | -9/Materials | Hacked Lgt. EM Pulse Cannon | -9/Materials | Hacked Rocket Launcher | -9/Materials | Hacked Adv. Treads | -8/Materials | Hacked EM Pulse Cannon | -8/Materials | Hacked Particle Cannon | -8/Materials | Hacked Arm. Treads | -8/Materials | Hacked Missile Launcher | -8/Materials | Hacked Nuclear Core | -8/Materials | Hacked Imp. EM Pulse Cannon | -8/Materials | Hacked Plasma Cannon | -7/Factory | Hacked Hvy. Missile Launcher | -7/Factory | Hacked Alien Tech Used ----------------- None Achievements -------------- None Challenges ------------ None Game ------ Seed RocketBlinkMediator Manual? 0 Play Time 02:05:41 Cumulative 334.3 hours Start 2026.03.12 @ 23:15:30 End 2026.03.13 @ 19:33:42 Sessions 9 Manual Loads 0 Difficulty Rogue Special Mode None Game No. 277 Rogue 241 Adventurer 36 Explorer 0 Win Type - Total 4 Types 2/0/0/1/0/0/0/1/0/0 Lore% 59 Gallery% 62 Achievement% 43 Wizard Run 0 Options --------- Layout 1 ASCII 0 Keyboard 0 Movement Numpad Keybinds 0 Fullscreen 1 Font 48/Smallcaps Map View 50x35 Zoom Use 0% Tactical HUD 1 Map Filters NONE Filters NONE Steam 1 RUN: 8faf35f2-dccb-4a9f-b151-9c6148913d40